[Event "Lueneburg Open-A 2019"]
[Site "Lueneburg"]
[Date "2019.08.04"]
[Round "2.16"]
[White "Lubbe, Melanie"]
[Black "Fabregas, Oliver"]
[Result "1-0"]
[ECO "B15"]
[WhiteElo "2258"]
[BlackElo "1956"]
[Annotator "NA"]
[PlyCount "91"]
[EventDate "2019.08.03"]
[EventType "swiss"]
[EventCountry "GER"]
[SourceTitle "playchess.com"]
[Source "ChessBase"]
[SourceQuality "1"]
[TimeControl "40/5400+30:1800+30"]

1. e4 {[%emt 0:00:00]} c6 {[%emt 0:00:00]} 2. d4 {[%emt 0:00:00]} d5 {[%emt 0:00:00]} 3. Nc3 {[%emt 0:00:00]} dxe4 {[%emt 0:00:00]} 4. Nxe4 {[%emt 0:00:02]} Nf6 {[%emt 0:00:00]} 5. Nxf6+ {[%emt 0:01:14]} exf6 {[%emt 0:00:05]} 6. c3 {[%emt 0:00:51]} Bd6 {[%emt 0:00:06]} 7. Bd3 {[%emt 0:01:26]} O-O {[%emt 0:00:40]} 8. Ne2 {[%emt 0:01:16]} Re8 {[%emt 0:00:18]} 9. Be3 {[%emt 0:04:23]} Nd7 {[%emt 0:06:24]} 10. Qc2 {[%emt 0:04:07]} Nf8 {[%emt 0:04:01]} 11. O-O-O {[%emt 0:06:23]} Be6 {[%emt 0:15:09]} 12. Kb1 {[%emt 0:02:33]} b5 {[%emt 0:10:34]} 13. Nf4 {[%emt 0:04:57]} Qc7 {[%emt 0:09:02]} 14. Nxe6 {[%emt 0:02:22]} fxe6 {[%emt 0:00:25]} 15. g3 {[%emt 0:02:05]} Rab8 {[%emt 0:08:20]} 16. Rhe1 {[%emt 0:02:42]} c5 {[%emt 0:06:30]} 17. dxc5 {[%emt 0:05:06]} Bxc5 {[%emt 0:01:58]} 18. Bf4 {[%emt 0:00:15]} e5 {[%emt 0:02:14]} 19. Bc1 {[%emt 0:00:25]} Qb6 {[%emt 0:02:44]} 20. f4 {[%emt 0:05:21]} a6 {[%emt 0:04:07]} 21. fxe5 {[%emt 0:03:27]} fxe5 {[%emt 0:03:24]} 22. Re4 {[%emt 0:01:31]} Rbd8 {[%emt 0:05:07]} 23. Rh4 {[%emt 0:06:31]} g6 {[%emt 0:05:13]} 24. Bh6 {[%emt 0:04:44]} Be7 {[%emt 0:05:27]} 25. Re4 {[%emt 0:07:56]} Bf6 {[%emt 0:03:03]} 26. h4 {[%emt 0:03:34]} Kh8 {[%emt 0:03:19]} 27. Rf1 {[%emt 0:03:26]} Bg7 {[%emt 0:00:58]} 28. Be3 {[%emt 0:07:25]} Qc6 {[%emt 0:00:19]} 29. h5 {[%emt 0:01:18]} Rd6 {[%emt 0:01:02]} 30. Rh4 {[%emt 0:04:20]} e4 {[%emt 0:01:10]} 31. Rxe4 {[%emt 0:03:54]} gxh5 {[%emt 0:01:48]} 32. Rxe8 {[%emt 0:03:23]} Qxe8 {[%emt 0:00:01]} 33. Bc5 {[%emt 0:00:29]} Re6 {[%emt 0:01:16]} 34. Qf2 {[%emt 0:04:29]} Ng6 {[%emt 0:00:39]} 35. Bd4 {[%emt 0:01:18]} Bxd4 {[%emt 0:00:52]} 36. Qxd4+ {[%emt 0:00:02]} Ne5 {[%emt 0:00:08]} 37. Rf5 {[%emt 0:00:37]} Kg8 {[%emt 0:00:28]} 38. Bc2 {[%emt 0:02:33]} Kh8 {[%emt 0:01:28]} 39. Bb3 {[%emt 0:00:55]} Re7 {[%emt 0:00:08]} 40. Rg5 {[%emt 0:00:47]} h6 {[%emt 0:00:57]} 41. Rg8+ {[%emt 0:04:29]} Qxg8 {[%emt 0:00:38]} 42. Bxg8 {[%emt 0:00:06]} Kxg8 {[%emt 0:00:11]} 43. Qd6 {[%emt 0:00:34]} Kf7 {[%emt 0:04:35]} 44. Qxh6 {[%emt 0:01:38]} Nc4 {[%emt 0:01:54]} 45. Qxh5+ {[%emt 0:00:50]} Kg7 {[%emt 0:01:10]} 46. b3 {[%emt 0:02:48]} 1-0

[Event "Lueneburg Open-A 2019"]
[Site "Lueneburg"]
[Date "2019.08.04"]
[Round "2.17"]
[White "Garner, Isaac"]
[Black "Colbow, Collin"]
[Result "1-0"]
[ECO "B72"]
[WhiteElo "1974"]
[BlackElo "2167"]
[Annotator "NA"]
[PlyCount "127"]
[EventDate "2019.08.03"]
[EventType "swiss"]
[EventCountry "GER"]
[SourceTitle "playchess.com"]
[Source "ChessBase"]
[SourceQuality "1"]
[TimeControl "40/5400+30:1800+30"]

1. e4 {[%emt 0:00:00]} c5 {[%emt 0:00:00]} 2. Nf3 {[%emt 0:00:00]} d6 {[%emt 0:00:00]} 3. d4 {[%emt 0:00:00]} cxd4 {[%emt 0:00:00]} 4. Nxd4 {[%emt 0:00:00]} Nf6 {[%emt 0:00:00]} 5. Nc3 {[%emt 0:00:00]} g6 {[%emt 0:00:02]} 6. Be3 {[%emt 0:00:00]} Bg7 {[%emt 0:00:05]} 7. Be2 {[%emt 0:00:00]} O-O {[%emt 0:01:47]} 8. Qd2 {[%emt 0:00:09]} Nc6 {[%emt 0:00:07]} 9. O-O-O {[%emt 0:00:05]} Ng4 {[%emt 0:00:08]} 10. Bxg4 {[%emt 0:00:06]} Bxg4 {[%emt 0:00:04]} 11. f3 {[%emt 0:00:05]} Be6 {[%emt 0:00:36]} 12. Kb1 {[%emt 0:00:11]} Rc8 {[%emt 0:14:10]} 13. Nd5 {[%emt 0:14:13]} Ne5 {[%emt 0:09:46]} 14. b3 {[%emt 0:00:45]} Bd7 {[%emt 0:12:28]} 15. Bh6 {[%emt 0:28:34]} Bxh6 {[%emt 0:12:23]} 16. Qxh6 {[%emt 0:00:11]} e6 {[%emt 0:01:52]} 17. Ne3 {[%emt 0:00:47]} f6 {[%emt 0:02:44]} 18. f4 {[%emt 0:05:39]} Nf7 {[%emt 0:01:11]} 19. Qh4 {[%emt 0:01:52]} f5 {[%emt 0:11:02]} 20. Qg3 {[%emt 0:03:51]} fxe4 {[%emt 0:04:56]} 21. f5 {[%emt 0:00:17]} exf5 {[%emt 0:02:22]} 22. Ndxf5 {[%emt 0:00:47]} Bxf5 {[%emt 0:03:21]} 23. Nxf5 {[%emt 0:00:05]} Qc7 {[%emt 0:06:08]} 24. c4 {[%emt 0:04:07]} Rcd8 {[%emt 0:05:54]} 25. Rhe1 {[%emt 0:03:30]} Rfe8 {[%emt 0:00:36]} 26. Ne3 {[%emt 0:00:42]} Kg7 {[%emt 0:04:46]} 27. Nd5 {[%emt 0:01:10]} Qc8 {[%emt 0:00:49]} 28. Qh4 {[%emt 0:06:15]} g5 {[%emt 0:01:30]} 29. Qf2 {[%emt 0:03:28]} Re6 {[%emt 0:01:23]} 30. Qf5 {[%emt 0:03:10]} Rde8 {[%emt 0:02:37]} 31. Rf1 {[%emt 0:01:08]} Rf8 {[%emt 0:00:29]} 32. Nf6 {[%emt 0:01:01]} Rxf6 {[%emt 0:00:44]} 33. Qxf6+ {[%emt 0:00:05]} Kg8 {[%emt 0:00:02]} 34. Qe7 {[%emt 0:01:34]} Qe8 {[%emt 0:01:46]} 35. Qxe8 {[%emt 0:02:29]} Rxe8 {[%emt 0:00:03]} 36. Rfe1 {[%emt 0:00:07]} b5 {[%emt 0:01:30]} 37. Rd4 {[%emt 0:01:56]} bxc4 {[%emt 0:00:06]} 38. bxc4 {[%emt 0:00:06]} e3 {[%emt 0:00:28]} 39. Rd3 {[%emt 0:01:30]} Re4 {[%emt 0:00:07]} 40. Rexe3 {[%emt 0:00:38]} Rxc4 {[%emt 0:00:08]} 41. Re8+ {[%emt 0:33:43]} Kg7 {[%emt 0:30:06]} 42. Re7 {[%emt 0:00:04]} Kg6 {[%emt 0:00:00]} 43. Rxa7 {[%emt 0:00:00]} Re4 {[%emt 0:00:00]} 44. Kc2 {[%emt 0:00:00]} Re6 {[%emt 0:00:00]} 45. Ra6 {[%emt 0:00:00]} Kf5 {[%emt 0:00:00]} 46. a4 {[%emt 0:00:00]} Rh6 {[%emt 0:00:00]} 47. h3 {[%emt 0:00:00]} g4 {[%emt 0:00:00]} 48. hxg4+ {[%emt 0:00:00]} Kxg4 {[%emt 0:00:00]} 49. Rb6 {[%emt 0:00:00]} Rh2 {[%emt 0:00:00]} 50. Rd2 {[%emt 0:00:00]} Rh1 {[%emt 0:00:00]} 51. Rb1 {[%emt 0:00:00]} Rh5 {[%emt 0:00:00]} 52. Rb5 {[%emt 0:00:00]} Rh1 {[%emt 0:00:00]} 53. Rd4+ {[%emt 0:00:00]} Kg3 {[%emt 0:00:00]} 54. Rb3+ {[%emt 0:00:00]} Kh2 {[%emt 0:00:00]} 55. Rd2 {[%emt 0:00:00]} Rf1 {[%emt 0:00:00]} 56. g4+ {[%emt 0:00:00]} Kg1 {[%emt 0:00:00]} 57. Rd1 {[%emt 0:00:41]} Ne5 {[%emt 0:00:00]} 58. Rxf1+ {[%emt 0:00:51]} Kxf1 {[%emt 0:00:00]} 59. a5 {[%emt 0:00:34]} Nc6 {[%emt 0:00:00]} 60. a6 {[%emt 0:00:12]} Kg2 {[%emt 0:00:00]} 61. Rb6 {[%emt 0:00:42]} Na7 {[%emt 0:00:00]} 62. Rb7 {[%emt 0:01:41]} Nc6 {[%emt 0:00:00]} 63. a7 {[%emt 0:00:05]} Nxa7 {[%emt 0:00:00]} 64. Rxa7 {[%emt 0:00:05]} 1-0

[Event "Lueneburg Open-A 2019"]
[Site "Lueneburg"]
[Date "2019.08.04"]
[Round "2.18"]
[White "Mueer, Sebastian"]
[Black "Ploder, Udo"]
[Result "1-0"]
[ECO "A43"]
[WhiteElo "2198"]
[BlackElo "1942"]
[Annotator "NA"]
[PlyCount "61"]
[EventDate "2019.08.03"]
[EventType "swiss"]
[EventCountry "GER"]
[SourceTitle "playchess.com"]
[Source "ChessBase"]
[SourceQuality "1"]
[TimeControl "40/5400+30:1800+30"]

1. d4 {[%emt 0:03:47]} Nf6 {[%emt 0:00:00]} 2. Nf3 {[%emt 0:00:15]} c5 {[%emt 0:00:07]} 3. d5 {[%emt 0:00:33]} e6 {[%emt 0:00:53]} 4. Nc3 {[%emt 0:00:18]} b5 {[%emt 0:02:46]} 5. Bg5 {[%emt 0:08:33]} Qa5 {[%emt 0:04:38]} 6. Bxf6 {[%emt 0:09:05]} gxf6 {[%emt 0:00:15]} 7. Qd2 {[%emt 0:02:00]} Bg7 {[%emt 0:14:57]} 8. Ne4 {[%emt 0:19:02]} Qxd2+ {[%emt 0:07:38]} 9. Nfxd2 {[%emt 0:03:05]} exd5 {[%emt 0:01:49]} 10. Nd6+ {[%emt 0:01:54]} Ke7 {[%emt 0:00:47]} 11. Nxb5 {[%emt 0:00:46]} Nc6 {[%emt 0:04:09]} 12. Nc7 {[%emt 0:02:36]} Rb8 {[%emt 0:04:22]} 13. Nxd5+ {[%emt 0:00:12]} Kd6 {[%emt 0:04:31]} 14. e4 {[%emt 0:08:15]} f5 {[%emt 0:15:19]} 15. Nc4+ {[%emt 0:04:56]} Ke6 {[%emt 0:00:15]} 16. Nc7+ {[%emt 0:10:12]} Ke7 {[%emt 0:05:11]} 17. Nd5+ {[%emt 0:05:33]} Ke6 {[%emt 0:00:34]} 18. O-O-O {[%emt 0:01:06]} fxe4 {[%emt 0:01:40]} 19. f3 {[%emt 0:00:31]} exf3 {[%emt 0:08:44]} 20. gxf3 {[%emt 0:02:24]} f5 {[%emt 0:04:20]} 21. Bh3 {[%emt 0:02:48]} Nd4 {[%emt 0:01:44]} 22. Nc7+ {[%emt 0:00:54]} Kf6 {[%emt 0:02:32]} 23. c3 {[%emt 0:03:34]} Bb7 {[%emt 0:00:55]} 24. cxd4 {[%emt 0:01:06]} Bxf3 {[%emt 0:00:11]} 25. dxc5 {[%emt 0:01:54]} Bxh1 {[%emt 0:01:12]} 26. Rxh1 {[%emt 0:00:02]} Rhc8 {[%emt 0:01:19]} 27. Nd5+ {[%emt 0:00:49]} Ke6 {[%emt 0:02:03]} 28. Nf4+ {[%emt 0:00:09]} Ke7 {[%emt 0:00:14]} 29. Re1+ {[%emt 0:01:20]} Kf8 {[%emt 0:00:10]} 30. Nd3 {[%emt 0:00:18]} f4 {[%emt 0:02:03]} 31. Bxd7 {[%emt 0:01:07]} 1-0

[Event "Lueneburg Open-A 2019"]
[Site "Lueneburg"]
[Date "2019.08.04"]
[Round "2.19"]
[White "Ramme, Christoph"]
[Black "Joppien, Arne"]
[Result "1-0"]
[ECO "B14"]
[WhiteElo "2154"]
[BlackElo "1940"]
[Annotator "NA"]
[PlyCount "103"]
[EventDate "2019.08.03"]
[EventType "swiss"]
[EventCountry "GER"]
[SourceTitle "playchess.com"]
[Source "ChessBase"]
[SourceQuality "1"]
[TimeControl "40/5400+30:1800+30"]

1. e4 {[%emt 0:00:00]} c6 {[%emt 0:00:00]} 2. d4 {[%emt 0:00:00]} d5 {[%emt 0:00:00]} 3. exd5 {[%emt 0:00:17]} cxd5 {[%emt 0:00:00]} 4. c4 {[%emt 0:00:11]} e6 {[%emt 0:01:09]} 5. Nc3 {[%emt 0:00:29]} Nf6 {[%emt 0:00:23]} 6. Nf3 {[%emt 0:00:26]} Nc6 {[%emt 0:00:06]} 7. Bg5 {[%emt 0:03:52]} Be7 {[%emt 0:02:38]} 8. c5 {[%emt 0:01:56]} Ne4 {[%emt 0:02:11]} 9. Bxe7 {[%emt 0:01:37]} Qxe7 {[%emt 0:04:41]} 10. Qc2 {[%emt 0:03:44]} Nxc3 {[%emt 0:01:24]} 11. Qxc3 {[%emt 0:02:12]} O-O {[%emt 0:02:18]} 12. Bb5 {[%emt 0:06:50]} Nb8 {[%emt 0:02:28]} 13. O-O {[%emt 0:01:04]} a6 {[%emt 0:03:33]} 14. Bd3 {[%emt 0:02:01]} Bd7 {[%emt 0:00:10]} 15. b4 {[%emt 0:02:49]} Rc8 {[%emt 0:05:47]} 16. Qc2 {[%emt 0:03:48]} g6 {[%emt 0:00:50]} 17. Qe2 {[%emt 0:02:13]} Ba4 {[%emt 1:10:52]} 18. Rfe1 {[%emt 0:03:13]} Nd7 {[%emt 0:00:00]} 19. Rac1 {[%emt 0:09:16]} Re8 {[%emt 0:00:00]} 20. Bc2 {[%emt 0:01:41]} Bxc2 {[%emt 0:00:00]} 21. Qxc2 {[%emt 0:00:49]} f6 {[%emt 0:00:00]} 22. Qb3 {[%emt 0:02:20]} Qf7 {[%emt 0:00:00]} 23. a4 {[%emt 0:04:39]} e5 {[%emt 0:00:00]} 24. dxe5 {[%emt 0:00:16]} Nxe5 {[%emt 0:00:00]} 25. Nxe5 {[%emt 0:02:02]} fxe5 {[%emt 0:00:00]} 26. c6 {[%emt 0:10:36]} bxc6 {[%emt 0:00:00]} 27. Rxc6 {[%emt 0:00:21]} Rf8 {[%emt 0:00:00]} 28. Qb2 {[%emt 0:02:29]} e4 {[%emt 0:00:00]} 29. h3 {[%emt 0:04:19]} Qg7 {[%emt 0:00:00]} 30. Qd2 {[%emt 0:03:33]} Qe5 {[%emt 0:00:00]} 31. Rd1 {[%emt 0:01:54]} Rad8 {[%emt 0:00:00]} 32. Qd4 {[%emt 0:01:38]} Qh5 {[%emt 0:00:00]} 33. Rxa6 {[%emt 0:03:37]} Qe2 {[%emt 0:00:00]} 34. Ra7 {[%emt 0:00:19]} Rf7 {[%emt 0:00:00]} 35. Rxf7 {[%emt 0:00:28]} Kxf7 {[%emt 0:00:00]} 36. Rc1 {[%emt 0:06:16]} Ke6 {[%emt 0:00:00]} 37. b5 {[%emt 0:02:47]} Rd6 {[%emt 0:00:00]} 38. b6 {[%emt 0:04:51]} Qa6 {[%emt 0:00:00]} 39. Rb1 {[%emt 0:00:49]} Qb7 {[%emt 0:00:00]} 40. a5 {[%emt 0:00:36]} Rd8 {[%emt 0:00:00]} 41. Qa4 {[%emt 0:35:39]} Ra8 {[%emt 0:17:26]} 42. Qb5 {[%emt 0:00:00]} h5 {[%emt 0:00:00]} 43. a6 {[%emt 0:00:00]} Rxa6 {[%emt 0:00:00]} 44. Qxa6 {[%emt 0:00:00]} Qxa6 {[%emt 0:00:00]} 45. b7 {[%emt 0:00:00]} Qd3 {[%emt 0:00:00]} 46. b8=Q {[%emt 0:00:00]} Kf5 {[%emt 0:00:00]} 47. Qb3 {[%emt 0:00:00]} g5 {[%emt 0:00:00]} 48. Qxd3 {[%emt 0:00:00]} exd3 {[%emt 0:00:00]} 49. Kf1 {[%emt 0:00:00]} Ke4 {[%emt 0:00:00]} 50. Ke1 {[%emt 0:00:00]} g4 {[%emt 0:00:00]} 51. hxg4 {[%emt 0:00:00]} hxg4 {[%emt 0:00:00]} 52. Kd2 {[%emt 0:00:00]} 1-0

[Event "Lueneburg Open-A 2019"]
[Site "Lueneburg"]
[Date "2019.08.04"]
[Round "2.20"]
[White "Bargsten, Justus"]
[Black "Haas, Frank-Martin"]
[Result "1/2-1/2"]
[ECO "C12"]
[WhiteElo "1946"]
[BlackElo "2152"]
[Annotator "NA"]
[PlyCount "47"]
[EventDate "2019.08.03"]
[EventType "swiss"]
[EventCountry "GER"]
[SourceTitle "playchess.com"]
[Source "ChessBase"]
[SourceQuality "1"]
[TimeControl "40/5400+30:1800+30"]

1. e4 {[%emt 0:00:00]} e6 {[%emt 0:00:00]} 2. d4 {[%emt 0:00:00]} d5 {[%emt 0:00:00]} 3. Nc3 {[%emt 0:00:00]} Nf6 {[%emt 0:00:00]} 4. Bg5 {[%emt 0:00:00]} Bb4 {[%emt 0:01:04]} 5. e5 {[%emt 0:00:00]} h6 {[%emt 0:00:07]} 6. Bc1 {[%emt 0:00:04]} Ne4 {[%emt 0:01:54]} 7. Qg4 {[%emt 0:00:13]} Kf8 {[%emt 0:03:17]} 8. Nge2 {[%emt 0:00:08]} c5 {[%emt 0:02:44]} 9. a3 {[%emt 0:00:25]} Ba5 {[%emt 0:13:22]} 10. dxc5 {[%emt 0:02:05]} Nxc3 {[%emt 0:03:35]} 11. Nxc3 {[%emt 0:00:18]} Bxc3+ {[%emt 0:02:04]} 12. bxc3 {[%emt 0:00:08]} Qc7 {[%emt 0:04:36]} 13. Be3 {[%emt 0:06:22]} Qxe5 {[%emt 0:07:02]} 14. Qd4 {[%emt 0:01:17]} Nc6 {[%emt 0:04:44]} 15. Qxe5 {[%emt 0:02:51]} Nxe5 {[%emt 0:00:02]} 16. Bf4 {[%emt 0:01:31]} f6 {[%emt 0:05:29]} 17. Be2 {[%emt 0:08:17]} Bd7 {[%emt 0:04:41]} 18. Rb1 {[%emt 0:00:28]} Bc6 {[%emt 0:10:38]} 19. Bxe5 {[%emt 0:03:04]} fxe5 {[%emt 0:00:10]} 20. Bb5 {[%emt 0:00:08]} Re8 {[%emt 0:03:39]} 21. Bxc6 {[%emt 0:00:08]} bxc6 {[%emt 0:00:06]} 22. Rb7 {[%emt 0:00:06]} Re7 {[%emt 0:00:06]} 23. Rb8+ {[%emt 0:00:10]} Re8 {[%emt 0:00:07]} 24. Rb7 {[%emt 0:00:07]} 1/2-1/2

[Event "Lueneburg Open-A 2019"]
[Site "Lueneburg"]
[Date "2019.08.04"]
[Round "2.21"]
[White "Terhorst, Jochen"]
[Black "Meschke, Oliver"]
[Result "1-0"]
[ECO "A80"]
[WhiteElo "2144"]
[BlackElo "1900"]
[Annotator "NA"]
[PlyCount "67"]
[EventDate "2019.08.03"]
[EventType "swiss"]
[EventCountry "GER"]
[SourceTitle "playchess.com"]
[Source "ChessBase"]
[SourceQuality "1"]
[TimeControl "40/5400+30:1800+30"]

1. d4 {[%emt 0:00:00]} f5 {[%emt 0:00:00]} 2. Bg5 {[%emt 0:00:04]} Nf6 {[%emt 0:02:02]} 3. Bxf6 {[%emt 0:01:03]} exf6 {[%emt 0:00:04]} 4. e3 {[%emt 0:00:15]} d5 {[%emt 0:00:38]} 5. c4 {[%emt 0:01:50]} Bb4+ {[%emt 0:06:51]} 6. Nc3 {[%emt 0:00:28]} c6 {[%emt 0:11:22]} 7. Qb3 {[%emt 0:02:57]} Ba5 {[%emt 0:21:29]} 8. Nge2 {[%emt 0:10:24]} dxc4 {[%emt 0:10:38]} 9. Qxc4 {[%emt 0:03:33]} Qe7 {[%emt 0:01:46]} 10. Nf4 {[%emt 0:18:44]} g5 {[%emt 0:02:00]} 11. Nh5 {[%emt 0:08:11]} Be6 {[%emt 0:03:28]} 12. Ng7+ {[%emt 0:11:08]} Kd7 {[%emt 0:03:35]} 13. Nxe6 {[%emt 0:02:53]} Qxe6 {[%emt 0:00:02]} 14. d5 {[%emt 0:03:28]} cxd5 {[%emt 0:05:11]} 15. O-O-O {[%emt 0:11:28]} Bxc3 {[%emt 0:05:21]} 16. Rxd5+ {[%emt 0:03:28]} Ke7 {[%emt 0:01:08]} 17. Qc5+ {[%emt 0:04:17]} Kf7 {[%emt 0:01:21]} 18. Bc4 {[%emt 0:06:36]} Kg6 {[%emt 0:06:40]} 19. bxc3 {[%emt 0:04:05]} Na6 {[%emt 0:00:53]} 20. Qd4 {[%emt 0:00:26]} Qe4 {[%emt 0:06:44]} 21. Bd3 {[%emt 0:00:21]} Qxd4 {[%emt 0:01:29]} 22. Bxf5+ {[%emt 0:00:12]} Kh6 {[%emt 0:00:44]} 23. exd4 {[%emt 0:00:19]} Rad8 {[%emt 0:01:48]} 24. Rb5 {[%emt 0:00:47]} b6 {[%emt 0:00:31]} 25. h4 {[%emt 0:00:26]} Nc7 {[%emt 0:00:37]} 26. Rb3 {[%emt 0:00:18]} Nd5 {[%emt 0:02:17]} 27. g3 {[%emt 0:00:48]} Rd6 {[%emt 0:01:21]} 28. Kd2 {[%emt 0:00:32]} Ne7 {[%emt 0:00:19]} 29. Bd3 {[%emt 0:00:37]} Kg7 {[%emt 0:00:40]} 30. Re1 {[%emt 0:01:20]} Rd7 {[%emt 0:01:18]} 31. hxg5 {[%emt 0:00:52]} fxg5 {[%emt 0:03:13]} 32. Rb5 {[%emt 0:00:19]} h6 {[%emt 0:00:00]} 33. Rbe5 {[%emt 0:00:07]} Nd5 {[%emt 0:00:00]} 34. Rh1 {[%emt 0:04:44]} 1-0

[Event "Lueneburg Open-A 2019"]
[Site "Lueneburg"]
[Date "2019.08.04"]
[Round "2.22"]
[White "Koch, Ralf-Johannes"]
[Black "Ishak, Rashid"]
[Result "0-1"]
[ECO "C54"]
[WhiteElo "1724"]
[BlackElo "2141"]
[Annotator "NA"]
[PlyCount "106"]
[EventDate "2019.08.03"]
[EventType "swiss"]
[EventCountry "GER"]
[SourceTitle "playchess.com"]
[Source "ChessBase"]
[SourceQuality "1"]
[TimeControl "40/5400+30:1800+30"]

1. e4 {[%emt 0:00:00]} e5 {[%emt 0:00:00]} 2. Nf3 {[%emt 0:00:00]} Nc6 {[%emt 0:00:00]} 3. Bc4 {[%emt 0:00:06]} Nf6 {[%emt 0:00:00]} 4. d3 {[%emt 0:00:17]} Bc5 {[%emt 0:00:07]} 5. c3 {[%emt 0:00:38]} d6 {[%emt 0:00:18]} 6. Nbd2 {[%emt 0:02:22]} O-O {[%emt 0:00:33]} 7. h3 {[%emt 0:01:00]} Bb6 {[%emt 0:00:53]} 8. Bb3 {[%emt 0:00:13]} Be6 {[%emt 0:04:25]} 9. Nf1 {[%emt 0:02:02]} d5 {[%emt 0:01:36]} 10. Ng3 {[%emt 0:02:07]} h6 {[%emt 0:05:33]} 11. O-O {[%emt 0:01:13]} Qd6 {[%emt 0:01:09]} 12. Qe2 {[%emt 0:02:40]} Rfe8 {[%emt 0:02:46]} 13. Nh4 {[%emt 0:05:21]} dxe4 {[%emt 0:01:31]} 14. dxe4 {[%emt 0:00:40]} Bxb3 {[%emt 0:00:41]} 15. axb3 {[%emt 0:00:08]} Rad8 {[%emt 0:00:08]} 16. Qf3 {[%emt 0:04:17]} Ne7 {[%emt 0:12:50]} 17. Nhf5 {[%emt 0:01:45]} Nxf5 {[%emt 0:00:40]} 18. Nxf5 {[%emt 0:00:18]} Qd3 {[%emt 0:00:59]} 19. Be3 {[%emt 0:09:24]} Qxe4 {[%emt 0:04:04]} 20. Qxe4 {[%emt 0:00:57]} Nxe4 {[%emt 0:00:17]} 21. Bxb6 {[%emt 0:01:11]} axb6 {[%emt 0:00:22]} 22. Ra7 {[%emt 0:00:53]} Rb8 {[%emt 0:00:13]} 23. Rd1 {[%emt 0:02:05]} Nf6 {[%emt 0:00:24]} 24. Kf1 {[%emt 0:01:44]} Kf8 {[%emt 0:00:13]} 25. Ke2 {[%emt 0:00:13]} h5 {[%emt 0:00:14]} 26. Ne3 {[%emt 0:02:38]} g6 {[%emt 0:07:09]} 27. b4 {[%emt 0:00:44]} Ke7 {[%emt 0:04:23]} 28. Nd5+ {[%emt 0:01:07]} Nxd5 {[%emt 0:00:10]} 29. Rxd5 {[%emt 0:00:03]} Ke6 {[%emt 0:00:11]} 30. Rd2 {[%emt 0:00:31]} Re7 {[%emt 0:00:14]} 31. b3 {[%emt 0:02:06]} Rd7 {[%emt 0:03:43]} 32. Rxd7 {[%emt 0:00:14]} Kxd7 {[%emt 0:00:13]} 33. f3 {[%emt 0:04:05]} f5 {[%emt 0:00:16]} 34. Ke3 {[%emt 0:01:03]} Re8 {[%emt 0:01:32]} 35. Ra2 {[%emt 0:03:53]} Rd8 {[%emt 0:08:55]} 36. g4 {[%emt 0:03:16]} hxg4 {[%emt 0:01:18]} 37. hxg4 {[%emt 0:00:13]} Rh8 {[%emt 0:00:24]} 38. gxf5 {[%emt 0:01:27]} gxf5 {[%emt 0:00:30]} 39. Rg2 {[%emt 0:00:12]} Rh3 {[%emt 0:00:12]} 40. Rg7+ {[%emt 0:00:37]} Kd6 {[%emt 0:00:24]} 41. Rg6+ {[%emt 0:30:34]} Ke7 {[%emt 0:30:18]} 42. Rg7+ {[%emt 0:00:08]} Kf6 {[%emt 0:00:18]} 43. Rxc7 {[%emt 0:00:53]} e4 {[%emt 0:00:12]} 44. Rxb7 {[%emt 0:01:13]} Rxf3+ {[%emt 0:00:12]} 45. Ke2 {[%emt 0:00:13]} Rxc3 {[%emt 0:00:19]} 46. Rxb6+ {[%emt 0:00:12]} Kg5 {[%emt 0:00:21]} 47. Rb8 {[%emt 0:01:03]} Kf4 {[%emt 0:00:21]} 48. b5 {[%emt 0:00:41]} Rxb3 {[%emt 0:00:12]} 49. b6 {[%emt 0:00:30]} Rb2+ {[%emt 0:00:10]} 50. Kd1 {[%emt 0:00:39]} e3 {[%emt 0:01:13]} 51. b7 {[%emt 0:00:46]} e2+ {[%emt 0:00:27]} 52. Ke1 {[%emt 0:00:05]} Kf3 {[%emt 0:00:26]} 53. Re8 {[%emt 0:00:35]} Rxb7 {[%emt 0:00:12]} 0-1

[Event "Lueneburg Open-A 2019"]
[Site "Lueneburg"]
[Date "2019.08.04"]
[Round "2.23"]
[White "Gerdau, Niklas"]
[Black "Wronn, Bernd"]
[Result "0-1"]
[ECO "B13"]
[WhiteElo "1704"]
[BlackElo "2128"]
[Annotator "NA"]
[PlyCount "63"]
[EventDate "2019.08.03"]
[EventType "swiss"]
[EventCountry "GER"]
[SourceTitle "playchess.com"]
[Source "ChessBase"]
[SourceQuality "1"]
[TimeControl "40/5400+30:1800+30"]

1. e4 {[%emt 0:00:44]} c6 {[%emt 0:03:31]} 2. d4 {[%emt 0:00:11]} d5 {[%emt 0:00:06]} 3. exd5 {[%emt 0:00:05]} cxd5 {[%emt 0:00:02]} 4. Bd3 {[%emt 0:00:07]} Nc6 {[%emt 0:00:13]} 5. c3 {[%emt 0:00:06]} Nf6 {[%emt 0:00:06]} 6. Bf4 {[%emt 0:00:13]} Bg4 {[%emt 0:00:14]} 7. Qb3 {[%emt 0:00:05]} Qd7 {[%emt 0:00:06]} 8. Nd2 {[%emt 0:00:33]} e6 {[%emt 0:00:07]} 9. Ngf3 {[%emt 0:00:23]} Bxf3 {[%emt 0:00:10]} 10. Nxf3 {[%emt 0:00:07]} Bd6 {[%emt 0:00:05]} 11. Ne5 {[%emt 0:02:33]} Qc7 {[%emt 0:00:34]} 12. O-O {[%emt 0:01:46]} Nh5 {[%emt 0:06:02]} 13. Bd2 {[%emt 0:01:16]} Nxe5 {[%emt 0:03:46]} 14. dxe5 {[%emt 0:00:10]} Bxe5 {[%emt 0:00:04]} 15. Rae1 {[%emt 0:00:09]} O-O {[%emt 0:11:36]} 16. g3 {[%emt 0:02:10]} Nf6 {[%emt 0:03:30]} 17. Re2 {[%emt 0:07:03]} Bd6 {[%emt 0:02:12]} 18. f4 {[%emt 0:02:34]} g6 {[%emt 0:08:38]} 19. Be3 {[%emt 0:01:52]} Nd7 {[%emt 0:03:55]} 20. Qd1 {[%emt 0:04:19]} Nc5 {[%emt 0:05:49]} 21. Bc2 {[%emt 0:00:42]} Ne4 {[%emt 0:04:44]} 22. Bd4 {[%emt 0:00:56]} f5 {[%emt 0:00:55]} 23. Rg2 {[%emt 0:08:48]} b5 {[%emt 0:01:43]} 24. Qc1 {[%emt 0:07:18]} h5 {[%emt 0:07:12]} 25. g4 {[%emt 0:01:32]} hxg4 {[%emt 0:00:36]} 26. h3 {[%emt 0:00:11]} g3 {[%emt 0:09:39]} 27. Bxe4 {[%emt 0:05:04]} dxe4 {[%emt 0:00:11]} 28. Rxg3 {[%emt 0:00:09]} Kf7 {[%emt 0:00:08]} 29. Qe3 {[%emt 0:00:43]} Rg8 {[%emt 0:01:34]} 30. Rf2 {[%emt 0:01:57]} g5 {[%emt 0:05:34]} 31. Rxg5 {[%emt 0:01:07]} Bxf4 {[%emt 0:00:18]} 32. Rxg8 {[%emt 0:51:07]} 0-1